fUSD/lending_fUSD_20240420
["ID","MTS","AMOUNT","RATE_DAILY","PERIOD"]
[323056281,1713621127403,-1264.42,0.00017808,2]
[323056282,1713621127413,-500.0,0.00017808,2]
[323056283,1713621127423,-1525.57,0.00017808,2]
[323056284,1713621127434,-1200.1,0.00017808,2]
[323056285,1713621127443,-500.0,0.00017808,2]
[323056286,1713621127454,-250.0,0.00017808,2]
[323056287,1713621127464,-2596.31,0.00017808,2]
[323056288,1713621127475,-3734.56,0.00017808,2]
[323056289,1713621127485,-735.18,0.00017808,2]
[323056290,1713621127495,-1983.17,0.00017808,2]
[323056291,1713621127505,-685.33,0.00017808,2]
[323056292,1713621127514,-1892.67,0.00017808,2]
[323056293,1713621127527,-794.67,0.00017808,2]
[323056294,1713621127537,-2762.86,0.00017808,2]
[323056295,1713621127547,-698.53,0.00017808,2]
[323056296,1713621127557,-500.0,0.00017808,2]
[323056297,1713621127566,-4314.41,0.00017808,2]
[323056298,1713621127576,-928.74,0.00017808,2]
[323056299,1713621127586,-704.33,0.00017808,2]
[323056300,1713621127595,-4750.03,0.00017808,2]
[323056301,1713621127605,-500.0,0.00017808,2]
[323056302,1713621127614,-556.39,0.00017808,2]
[323056303,1713621127624,-500.0,0.00017808,2]
[323056304,1713621127633,-6352.14,0.00017808,2]
[323056305,1713621127642,-554.92,0.00017808,2]
[323056306,1713621127652,-1612.53,0.00017808,2]
[323056307,1713621127660,-1230.53,0.00017808,2]
[323056308,1713621127669,-500.0,0.00017808,2]
[323056309,1713621127679,-1323.32,0.00017808,2]
[323056310,1713621127689,-5730.53,0.00017808,2]
[323056311,1713621127698,-3222.01,0.00017808,2]
[323056312,1713621127708,-1237.83,0.00017808,2]
[323056313,1713621127718,-801.29,0.00017808,2]
[323056314,1713621127728,-500.0,0.00017808,2]
[323056315,1713621127737,-500.0,0.00017808,2]
[323056316,1713621127747,-8896.9,0.00017808,2]
[323056317,1713621127756,-1250.13,0.00017808,2]
[323056318,1713621127767,-21516.91,0.00017808,2]
[323056319,1713621127776,-1238.37,0.00017808,2]
[323056320,1713621127785,-618.25,0.00017808,2]
[323056321,1713621127795,-474.89456284,0.00017808,2]
[323056322,1713621127805,-1269.11,0.00017808,2]
[323056323,1713621127815,-622.79,0.00017808,2]
[323056324,1713621127825,-582.42,0.00017808,2]
[323056325,1713621127835,-500.0,0.00017808,2]
[323056326,1713621127845,-736.180461,0.00017808,2]
[323056327,1713621127854,-150.0,0.00017808,2]
[323056328,1713621127865,-150.0,0.00017808,2]
[323056329,1713621127874,-150.0,0.00017808,2]
[323056330,1713621127885,-150.0,0.00017808,2]
[323056331,1713621127895,-300.0,0.00017808,2]
[323056332,1713621127905,-150.0,0.00017809,2]
[323056333,1713621127915,-1255.25381275,0.0001781,2]
[323056334,1713621127925,-1255.25381275,0.0001781,2]
[323056335,1713621127934,-1255.25381275,0.0001781,2]
[323056336,1713621127943,-1255.25381275,0.0001781,2]
[323056337,1713621128040,-1255.25381275,0.0001781,2]
[323056338,1713621128050,-1255.25381275,0.0001781,2]
[323056339,1713621128059,-1255.25381275,0.0001781,2]
[323056340,1713621128068,-1255.25381275,0.0001781,2]
[323056341,1713621128077,-1255.25381275,0.0001781,2]
[323056342,1713621128086,-1255.25381275,0.0001781,2]
[323056343,1713621128096,-1255.25381275,0.0001781,2]
[323056344,1713621128105,-1255.25381275,0.0001781,2]
[323056345,1713621128114,-1255.25381275,0.0001781,2]
[323056346,1713621128123,-1255.25381275,0.0001781,2]
[323056347,1713621128132,-1255.25381275,0.0001781,2]
[323056348,1713621128142,-1255.25381275,0.0001781,2]
[323056349,1713621128161,-1255.25381275,0.0001781,2]
[323056350,1713621128171,-1255.25381275,0.0001781,2]
[323056351,1713621128180,-1255.25381275,0.0001781,2]
[323056352,1713621128190,-1255.75,0.0001781,2]
[323056353,1713621128199,-246.34457302,0.0001781,2]
[323056354,1713621128208,-246.34457302,0.0001781,2]
[323056355,1713621128217,-246.34457302,0.0001781,2]
[323056356,1713621128226,-246.34457302,0.0001781,2]
[323056357,1713621128235,-246.34457302,0.0001781,2]
[323056358,1713621128244,-246.34457302,0.0001781,2]
[323056359,1713621128253,-246.34457302,0.0001781,2]
[323056360,1713621128262,-246.34457302,0.0001781,2]
[323056361,1713621128272,-246.34457302,0.0001781,2]
[323056362,1713621128281,-246.34457302,0.0001781,2]
[323056363,1713621128292,-246.34457302,0.0001781,2]
[323056364,1713621128302,-246.34457302,0.0001781,2]
[323056365,1713621128312,-246.34457302,0.0001781,2]
[323056366,1713621128321,-246.34457302,0.0001781,2]
[323056367,1713621128331,-246.34457302,0.0001781,2]
[323056368,1713621128340,-246.34457302,0.0001781,2]
[323056369,1713621128349,-246.34457302,0.0001781,2]
[323056370,1713621128358,-246.34457302,0.0001781,2]
[323056371,1713621128367,-246.34457302,0.0001781,2]
[323056372,1713621128377,-246.84,0.0001781,2]
[323056373,1713621128386,-1093.08125658,0.0001781,2]
[323056374,1713621128396,-1093.08125658,0.0001781,2]
[323056375,1713621128405,-1093.08125658,0.0001781,2]
[323056376,1713621128414,-1093.08125658,0.0001781,2]
[323056377,1713621128423,-1093.08125658,0.0001781,2]
[323056378,1713621128433,-1093.08125658,0.0001781,2]
[323056379,1713621128442,-1093.08125658,0.0001781,2]
[323056380,1713621128451,-1093.08125658,0.0001781,2]
[323056381,1713621128460,-1093.08125658,0.0001781,2]
[323056382,1713621128470,-1093.08125658,0.0001781,2]
[323056383,1713621128481,-1093.08125658,0.0001781,2]
[323056384,1713621128490,-1093.08125658,0.0001781,2]
[323056385,1713621128500,-1093.08125658,0.0001781,2]
[323056386,1713621128509,-1093.08125658,0.0001781,2]
[323056387,1713621128520,-1093.08125658,0.0001781,2]
[323056388,1713621128529,-1093.08125658,0.0001781,2]
[323056389,1713621128537,-1093.08125658,0.0001781,2]
[323056390,1713621128547,-1093.08125658,0.0001781,2]
[323056391,1713621128556,-1093.08125658,0.0001781,2]
[323056392,1713621128566,-1093.58,0.0001781,2]
[323056393,1713621128576,-2759.41162125,0.0001781,2]
[323056394,1713621128585,-2759.41162125,0.0001781,2]
[323056395,1713621128595,-2759.41162125,0.0001781,2]
[323056396,1713621128608,-2759.41162125,0.0001781,2]
[323056397,1713621128618,-2759.41162125,0.0001781,2]
[323056398,1713621128627,-2759.41162125,0.0001781,2]
[323056399,1713621128636,-2759.41162125,0.0001781,2]
[323056400,1713621128646,-2759.41162125,0.0001781,2]
[323056401,1713621128655,-2759.41162125,0.0001781,2]
[323056402,1713621128664,-2759.41162125,0.0001781,2]
[323056403,1713621128673,-2759.41162125,0.0001781,2]
[323056404,1713621128683,-2759.41162125,0.0001781,2]
[323056405,1713621128692,-2759.41162125,0.0001781,2]
[323056406,1713621128701,-2759.41162125,0.0001781,2]
[323056407,1713621128711,-2759.41162125,0.0001781,2]
[323056408,1713621128721,-2759.41162125,0.0001781,2]
[323056409,1713621128731,-2759.41162125,0.0001781,2]
[323056410,1713621128740,-2759.41162125,0.0001781,2]
[323056411,1713621128750,-2759.41162125,0.0001781,2]
[323056412,1713621128759,-2759.91,0.0001781,2]
[323056413,1713621128770,-6935.32486864,0.0001782,2]
[323056414,1713621128779,-161.0,0.0001786,2]
[323056415,1713621128788,-57160.29475581,0.0001788,2]
[323056416,1713621128797,-57160.29475579,0.0001788,2]
[323056417,1713621128807,-57160.29475579,0.0001788,2]
[323056418,1713621128817,-57160.29475579,0.0001788,2]
[323056419,1713621128827,-57160.29475579,0.0001788,2]
[323056420,1713621128837,-150.0,0.00017907,2]
[323056421,1713621128847,-233.94,0.00017992,2]
[323056422,1713621128856,-648.0,0.00018,8]
[323056423,1713621128865,-284.3270083,0.00018,2]
[323056424,1713621128874,-300.6432094,0.00018,2]
[323056425,1713621128884,-1000.0,0.00018,2]
[323056426,1713621128894,-1105.41081565,0.00018,2]
[323056427,1713621128903,-156.70291862,0.00018,2]
[323056428,1713621128912,-482.0,0.00018,2]
[323056429,1713621128922,-1041.09411155,0.00018,2]
[323056430,1713621128931,-1008.6,0.00018,3]
[323056431,1713621128941,-2350.0,0.00018,2]
[323056432,1713621128950,-150.0,0.00018,2]
[323056433,1713621128960,-150.0,0.00018,2]
[323056434,1713621128970,-152.0,0.00018039,4]
[323056435,1713621128980,-500.0,0.00018082,2]
[323056436,1713621128989,-1039.36,0.00018082,2]
[323056437,1713621128998,-448.93016493,0.00018082,2]
[323056438,1713621129008,-500.0,0.00018082,2]
[323056439,1713621129017,-635.04,0.00018082,2]
[323056440,1713621129028,-639.54,0.00018082,2]
[323056441,1713621129038,-500.0,0.00018082,2]
[323056442,1713621129047,-500.0,0.00018082,2]
[323056443,1713621129060,-852.82,0.00018082,2]
[323056444,1713621129070,-654.32,0.00018082,2]
[323056445,1713621129079,-500.0,0.00018082,2]
[323056446,1713621129088,-502.56,0.00018082,2]
[323056447,1713621129098,-349.05799361,0.00018082,2]
[323056448,1713621129107,-500.0,0.00018082,2]
[323056449,1713621129116,-611.35,0.00018082,2]
[323056450,1713621129126,-500.0,0.00018082,2]
[323056451,1713621129136,-735.88,0.00018082,2]
[323056452,1713621129145,-717.35,0.00018082,2]
[323056453,1713621129155,-500.0,0.00018082,2]
[323056454,1713621129164,-539.29,0.00018082,2]
[323056455,1713621129174,-500.0,0.00018082,2]
[323056456,1713621129184,-500.0,0.00018082,2]
[323056457,1713621129193,-500.0,0.00018082,2]
[323056458,1713621129202,-500.0,0.00018082,2]
[323056459,1713621129211,-500.0,0.00018082,2]
[323056460,1713621129221,-500.0,0.00018082,2]
[323056461,1713621129230,-569.73,0.00018082,2]
[323056462,1713621129239,-500.0,0.00018082,2]
[323056463,1713621129248,-637.21,0.00018082,2]
[323056464,1713621129258,-827.03,0.00018082,2]
[323056465,1713621129268,-500.0,0.00018082,2]
[323056466,1713621129278,-579.7,0.00018082,2]
[323056467,1713621129288,-969.36,0.00018082,2]
[323056468,1713621129300,-781.94,0.00018082,2]
[323056469,1713621129309,-667.13,0.00018082,2]
[323056470,1713621129318,-500.0,0.00018082,2]
[323056471,1713621129328,-500.0,0.00018082,2]
[323056472,1713621129337,-500.0,0.00018082,2]
[323056473,1713621129346,-500.0,0.00018082,2]
[323056474,1713621129356,-500.0,0.00018082,2]
[323056475,1713621129365,-500.0,0.00018082,2]
[323056476,1713621129374,-770.44,0.00018082,2]
[323056477,1713621129384,-1099.12,0.00018082,2]
[323056478,1713621129393,-597.89,0.00018082,2]
[323056479,1713621129402,-500.0,0.00018082,2]
[323056480,1713621129412,-522.54,0.00018082,2]
[323056481,1713621129421,-500.0,0.00018082,2]
[323056482,1713621129430,-500.0,0.00018082,2]
[323056483,1713621129440,-532.55,0.00018082,2]
[323056484,1713621129449,-500.0,0.00018082,2]
[323056485,1713621129458,-618.57,0.00018082,2]
[323056486,1713621129468,-500.0,0.00018082,2]
[323056487,1713621129477,-737.86,0.00018082,2]
[323056488,1713621129487,-500.0,0.00018082,2]
[323056489,1713621129496,-515.87,0.00018082,2]
[323056490,1713621129509,-500.0,0.00018082,2]
[323056491,1713621129520,-912.68,0.00018082,2]
[323056492,1713621129529,-500.0,0.00018082,2]
[323056493,1713621129539,-860.75,0.00018082,2]
[323056494,1713621129549,-500.0,0.00018082,2]
[323056495,1713621129559,-702.21,0.00018082,2]
[323056496,1713621129569,-500.0,0.00018082,2]
[323056497,1713621129578,-500.0,0.00018082,2]
[323056498,1713621129588,-500.0,0.00018082,2]
[323056499,1713621129598,-821.61,0.00018082,2]
[323056500,1713621129607,-821.76,0.00018082,2]
[323056501,1713621129617,-500.0,0.00018082,2]
[323056502,1713621129627,-500.0,0.00018082,2]
[323056503,1713621129636,-500.0,0.00018082,2]
[323056504,1713621129646,-500.0,0.00018082,2]
[323056505,1713621129656,-500.0,0.00018082,2]
[323056506,1713621129666,-940.84,0.00018082,2]
[323056507,1713621129676,-500.0,0.00018082,2]
[323056508,1713621129685,-863.56,0.00018082,2]
[323056509,1713621129695,-1083.21,0.00018082,2]
[323056510,1713621129704,-500.0,0.00018082,2]
[323056511,1713621129714,-1649.11,0.00018082,2]
[323056512,1713621129724,-500.0,0.00018082,2]
[323056513,1713621129735,-500.0,0.00018082,2]
[323056514,1713621129745,-933.2,0.00018082,2]
[323056515,1713621129755,-159.96820699,0.00018082,2]
[323056516,1713621129764,-1738.53,0.00018082,2]
[323056517,1713621129777,-500.0,0.00018082,2]
[323056518,1713621129788,-500.0,0.00018082,2]
[323056519,1713621129798,-641.19,0.00018082,2]
[323056520,1713621129809,-546.2,0.00018082,2]
[323056521,1713621129819,-669.09,0.00018082,2]
[323056522,1713621129830,-538.48,0.00018082,2]
[323056523,1713621129841,-500.0,0.00018082,2]
[323056524,1713621129852,-526.85,0.00018082,2]
[323056525,1713621129862,-1472.9,0.00018082,2]
[323056526,1713621129871,-633.05,0.00018082,2]
[323056527,1713621129881,-500.0,0.00018082,2]
[323056528,1713621129892,-679.04,0.00018082,2]
[323056529,1713621129903,-500.0,0.00018082,2]
[323056530,1713621129913,-889.7,0.00018082,2]
[323056531,1713621129923,-749.34,0.00018082,2]
[323056532,1713621129934,-614.66,0.00018082,2]
[323056533,1713621129944,-669.86,0.00018082,2]
[323056534,1713621129955,-627.14,0.00018082,2]
[323056535,1713621129965,-500.0,0.00018082,2]
[323056536,1713621129975,-887.51,0.00018082,2]
[323056537,1713621129986,-500.0,0.00018082,2]
[323056538,1713621129997,-595.2,0.00018082,2]
[323056539,1713621130007,-500.0,0.00018082,2]
[323056540,1713621130017,-500.0,0.00018082,2]
[323056541,1713621130028,-712.4,0.00018082,2]
[323056542,1713621130039,-654.49,0.00018082,2]
[323056543,1713621130050,-583.86,0.00018082,2]
[323056544,1713621130060,-714.19,0.00018082,2]
[323056545,1713621130070,-500.0,0.00018082,2]
[323056546,1713621130080,-543.54,0.00018082,2]
[323056547,1713621130091,-856.07,0.00018082,2]
[323056548,1713621130101,-519.9,0.00018082,2]
[323056549,1713621130112,-1382.29,0.00018082,2]
[323056550,1713621130123,-500.0,0.00018082,2]
[323056551,1713621130133,-704.01,0.00018082,2]
[323056552,1713621130144,-500.0,0.00018082,2]
[323056553,1713621130155,-778.05,0.00018082,2]
[323056554,1713621130165,-943.86,0.00018082,2]
[323056555,1713621130176,-533.87,0.00018082,2]
[323056556,1713621130186,-1206.79,0.00018082,2]
[323056557,1713621130197,-864.0,0.00018082,2]
[323056558,1713621130207,-871.35,0.00018082,2]
[323056559,1713621130218,-623.11705182,0.00018082,2]
[323056560,1713621130228,-581.68,0.00018082,2]
[323056561,1713621130240,-998.69,0.00018082,2]
[323056562,1713621130250,-580.51,0.00018082,2]
[323056563,1713621130261,-291.36002173,0.00018082,2]
[323056564,1713621130272,-564.88,0.00018082,2]
[323056565,1713621130282,-777.99,0.00018082,2]
[323056566,1713621130293,-566.7,0.00018082,2]
[323056567,1713621130305,-500.0,0.00018082,2]
[323056568,1713621130316,-772.56,0.00018082,2]
[323056569,1713621130337,-922.4,0.00018082,2]
[323056570,1713621130349,-500.0,0.00018082,2]
[323056571,1713621130360,-741.19,0.00018082,2]
[323056572,1713621130370,-500.0,0.00018082,2]
[323056573,1713621130381,-510.23,0.00018082,2]
[323056574,1713621130392,-500.0,0.00018082,2]
[323056575,1713621130402,-1301.99,0.00018082,2]
[323056576,1713621130412,-1011.91,0.00018082,2]
[323056577,1713621130422,-729.34,0.00018082,2]
[323056578,1713621130432,-598.99,0.00018082,2]
[323056579,1713621130443,-590.27,0.00018082,2]
[323056580,1713621130453,-500.0,0.00018082,2]
[323056581,1713621130464,-983.5,0.00018082,2]
[323056582,1713621130474,-500.0,0.00018082,2]
[323056583,1713621130485,-500.0,0.00018082,2]
[323056584,1713621130495,-500.0,0.00018082,2]
[323056585,1713621130507,-829.71,0.00018082,2]
[323056586,1713621130518,-500.0,0.00018082,2]
[323056587,1713621130530,-605.59,0.00018082,2]
[323056588,1713621130540,-500.0,0.00018082,2]
[323056589,1713621130551,-1243.7,0.00018082,2]
[323056590,1713621130562,-1886.34,0.00018082,2]
[323056591,1713621130572,-500.0,0.00018082,2]
[323056592,1713621130583,-685.34,0.00018082,2]
[323056593,1713621130594,-500.0,0.00018082,2]
[323056594,1713621130605,-500.0,0.00018082,2]
[323056595,1713621130616,-500.0,0.00018082,2]
[323056596,1713621130626,-500.0,0.00018082,2]
[323056597,1713621130636,-612.53,0.00018082,2]
[323056598,1713621130646,-723.5,0.00018082,2]
[323056599,1713621130658,-730.92,0.00018082,2]
[323056600,1713621130669,-500.0,0.00018082,2]
[323056601,1713621130680,-1025.52,0.00018082,2]
[323056602,1713621130691,-500.0,0.00018082,2]
[323056603,1713621130701,-500.0,0.00018082,2]
[323056604,1713621130712,-1486.68,0.00018082,2]
[323056605,1713621130723,-500.0,0.00018082,2]
[323056606,1713621130735,-970.1,0.00018082,2]
[323056607,1713621130745,-500.0,0.00018082,2]
[323056608,1713621130757,-600.76,0.00018082,2]
[323056609,1713621130767,-775.5,0.00018082,2]
[323056610,1713621130779,-580.95,0.00018082,2]
[323056611,1713621130789,-1195.92,0.00018082,2]
[323056612,1713621130800,-971.12,0.00018082,2]
[323056613,1713621130812,-558.98,0.00018082,2]
[323056614,1713621130822,-751.59,0.00018082,2]
[323056615,1713621130833,-318.98094464,0.00018082,2]
[323056616,1713621130844,-1627.69,0.00018082,2]
[323056617,1713621130854,-1693.65,0.00018082,2]
[323056618,1713621130865,-500.0,0.00018082,2]
[323056619,1713621130875,-712.6,0.00018082,2]
[323056620,1713621130886,-500.0,0.00018082,2]
[323056621,1713621130898,-964.32,0.00018082,2]
[323056622,1713621130908,-611.81,0.00018082,2]
[323056623,1713621130919,-1500.36,0.00018082,2]
[323056624,1713621130930,-630.97,0.00018082,2]
[323056625,1713621130940,-1123.09,0.00018082,2]
[323056626,1713621130951,-500.0,0.00018082,2]
[323056627,1713621130961,-500.0,0.00018082,2]
[323056628,1713621130972,-571.83,0.00018082,2]
[323056629,1713621130983,-1122.67,0.00018082,2]
[323056630,1713621130994,-959.94,0.00018082,2]
[323056631,1713621131005,-666.18,0.00018082,2]
[323056632,1713621131016,-717.02,0.00018082,2]
[323056633,1713621131028,-500.0,0.00018082,2]
[323056634,1713621131039,-656.38,0.00018082,2]
[323056635,1713621131050,-672.57,0.00018082,2]
[323056636,1713621131061,-500.0,0.00018082,2]
[323056637,1713621131072,-817.63,0.00018082,2]
[323056638,1713621131083,-748.28,0.00018082,2]
[323056639,1713621131094,-1401.32,0.00018082,2]
[323056640,1713621131105,-1699.19,0.00018082,2]
[323056641,1713621131116,-500.0,0.00018082,2]
[323056642,1713621131127,-1021.58,0.00018082,2]
[323056643,1713621131137,-2008.01,0.00018082,2]
[323056644,1713621131148,-502.08,0.00018082,2]
[323056645,1713621131158,-623.84,0.00018082,2]
[323056646,1713621131169,-556.29,0.00018082,2]
[323056647,1713621131179,-1672.8,0.00018082,2]
[323056648,1713621131190,-1383.08,0.00018082,2]
[323056649,1713621131201,-500.0,0.00018082,2]
[323056650,1713621131212,-905.55,0.00018082,2]
[323056651,1713621131223,-500.0,0.00018082,2]
[323056652,1713621131234,-500.0,0.00018082,2]
[323056653,1713621131245,-500.0,0.00018082,2]
[323056654,1713621131256,-500.0,0.00018082,2]
[323056655,1713621131267,-1271.86,0.00018082,2]
[323056656,1713621131278,-531.26,0.00018082,2]
[323056657,1713621131289,-858.15,0.00018082,2]
[323056658,1713621131303,-500.0,0.00018082,2]
[323056659,1713621131314,-2051.78,0.00018082,2]
[323056660,1713621131325,-500.0,0.00018082,2]
[323056661,1713621131336,-2102.91,0.00018082,2]
[323056662,1713621131346,-495.25,0.00018082,2]
[323056663,1713621131356,-888.43,0.00018082,2]
[323056664,1713621131367,-500.0,0.00018082,2]
[323056665,1713621131378,-547.06,0.00018082,2]
[323056666,1713621131388,-500.0,0.00018082,2]
[323056667,1713621131399,-1220.03,0.00018082,2]
[323056668,1713621131410,-1132.15,0.00018082,2]
[323056669,1713621131420,-1428.28,0.00018082,2]
[323056670,1713621131430,-1590.37,0.00018082,2]
[323056671,1713621131443,-640.38,0.00018082,2]
[323056672,1713621131453,-621.99,0.00018082,2]
[323056673,1713621131464,-1083.02,0.00018082,2]
[323056674,1713621131474,-1323.41,0.00018082,2]
[323056675,1713621131485,-912.32,0.00018082,2]
[323056676,1713621131496,-500.0,0.00018082,2]
[323056677,1713621131506,-500.0,0.00018082,2]
[323056678,1713621131517,-590.76,0.00018082,2]
[323056679,1713621131528,-827.0,0.00018082,2]
[323056680,1713621131539,-720.61,0.00018082,2]
[323056681,1713621131550,-1207.81,0.00018082,2]
[323056682,1713621131561,-477.39149963,0.00018082,2]
[323056683,1713621131572,-972.02,0.00018082,2]
[323056684,1713621131583,-1649.09,0.00018082,2]
[323056685,1713621131594,-3308.96,0.00018082,2]
[323056686,1713621131605,-1214.04,0.00018082,2]
[323056687,1713621131616,-500.0,0.00018082,2]
[323056688,1713621131627,-500.0,0.00018082,2]
[323056689,1713621131638,-500.0,0.00018082,2]
[323056690,1713621131648,-803.54,0.00018082,2]
[323056691,1713621131659,-1303.19,0.00018082,2]
[323056692,1713621131670,-3936.85,0.00018082,2]
[323056693,1713621131681,-599.69,0.00018082,2]
[323056694,1713621131692,-586.97,0.00018082,2]
[323056695,1713621131703,-1031.32,0.00018082,2]
[323056696,1713621131714,-789.55,0.00018082,2]
[323056697,1713621131724,-1204.32,0.00018082,2]
[323056698,1713621131734,-500.0,0.00018082,2]
[323056699,1713621131745,-500.0,0.00018082,2]
[323056700,1713621131755,-500.0,0.00018082,2]
[323056701,1713621131766,-702.73,0.00018082,2]
[323056702,1713621131778,-516.52,0.00018082,2]
[323056703,1713621131790,-3310.74,0.00018082,2]
[323056704,1713621131801,-500.0,0.00018082,2]
[323056705,1713621131813,-500.0,0.00018082,2]
[323056706,1713621131823,-575.04768395,0.00018082,2]
[323056707,1713621131834,-359.88869308,0.00018082,2]
[323056708,1713621131846,-2883.58,0.00018082,2]
[323056709,1713621131857,-1816.08,0.00018082,2]
[323056710,1713621131869,-585.36,0.00018082,2]
[323056711,1713621131880,-855.47,0.00018082,2]
[323056712,1713621131892,-534.99,0.00018082,2]
[323056713,1713621131903,-500.0,0.00018082,2]
[323056714,1713621131914,-25055.79,0.00018082,2]
[323056715,1713621131926,-2836.68,0.00018082,2]
[323056716,1713621131936,-1302.76,0.00018082,2]
[323056717,1713621131948,-1460.91,0.00018082,2]
[323056718,1713621131959,-11346.84,0.00018082,2]
[323056719,1713621131970,-604.68,0.00018082,2]
[323056720,1713621131982,-2104.73,0.00018082,2]
[323056721,1713621131992,-500.0,0.00018082,2]
[323056722,1713621132003,-500.0,0.00018082,2]
[323056723,1713621132013,-435.18750954,0.00018082,2]
[323056724,1713621132026,-2073.42,0.00018082,2]
[323056725,1713621132038,-1526.62,0.00018082,2]
[323056726,1713621132049,-500.0,0.00018082,2]
[323056727,1713621132061,-1538.77,0.00018082,2]
[323056728,1713621132072,-17543.18,0.00018082,2]
[323056729,1713621132324,-500.0,0.00018082,2]
[323056730,1713621132351,-500.0,0.00018082,2]
[323056731,1713621132361,-4660.49,0.00018082,2]
[323056732,1713621132371,-2699.08,0.00018082,2]
[323056733,1713621132381,-500.0,0.00018082,2]
[323056734,1713621132391,-1179.82,0.00018082,2]
[323056735,1713621132400,-1530.53,0.00018082,2]
[323056736,1713621132410,-581.88,0.00018082,2]
[323056737,1713621132418,-2419.34,0.00018082,2]
[323056738,1713621132429,-500.0,0.00018082,2]
[323056739,1713621132439,-1491.91,0.00018082,2]
[323056740,1713621132449,-1046.7,0.00018082,2]
[323056741,1713621132458,-929.27,0.00018082,2]
[323056742,1713621132468,-1397.79,0.00018082,2]
[323056743,1713621132478,-2207.26,0.00018082,2]
[323056744,1713621132487,-5291.84,0.00018082,2]
[323056745,1713621132496,-983.83,0.00018082,2]
[323056746,1713621132505,-584.35,0.00018082,2]
[323056747,1713621132514,-689.72,0.00018082,2]
[323056748,1713621132527,-2126.15,0.00018082,2]
[323056749,1713621132536,-3579.93,0.00018082,2]
[323056750,1713621132546,-2569.48,0.00018082,2]
[323056751,1713621132555,-873.88,0.00018082,2]
[323056752,1713621132565,-820.73,0.00018082,2]
[323056753,1713621132575,-347.00683954,0.00018082,2]
[323056754,1713621132585,-5218.13,0.00018082,2]
[323056755,1713621132594,-500.0,0.00018082,2]
[323056756,1713621132603,-500.0,0.00018082,2]
[323056757,1713621132613,-987.0,0.00018082,2]
[323056758,1713621132623,-20114.69,0.00018082,2]
[323056759,1713621132632,-893.57,0.00018082,2]
[323056760,1713621132642,-500.0,0.00018082,2]
[323056761,1713621132651,-637.43,0.00018082,2]
[323056762,1713621132661,-1731.18,0.00018082,2]
[323056763,1713621132671,-1285.12,0.00018082,2]
[323056764,1713621132680,-1109.59,0.00018082,2]
[323056765,1713621132690,-1096.27,0.00018082,2]
[323056766,1713621132699,-500.0,0.00018082,2]
[323056767,1713621132709,-725.21,0.00018082,2]
[323056768,1713621132719,-1089.81,0.00018082,2]
[323056769,1713621132729,-508.71,0.00018082,2]
[323056770,1713621132739,-500.0,0.00018082,2]
[323056771,1713621132749,-500.0,0.00018082,2]
[323056772,1713621132759,-520.08,0.00018082,2]
[323056773,1713621132768,-1517.58,0.00018082,2]
[323056774,1713621132781,-500.0,0.00018082,2]
[323056775,1713621132791,-1955.1,0.00018082,2]
[323056776,1713621132800,-500.0,0.00018082,2]
[323056777,1713621132810,-1531.19,0.00018082,2]
[323056778,1713621132820,-620.62,0.00018082,2]
[323056779,1713621132829,-967.39,0.00018082,2]
[323056780,1713621132839,-747.89,0.00018082,2]